[Event "Early-Titled-Tuesday-Blitz-October-03-2023"]
[Site "Chess.com"]
[Date "2023.10.03"]
[Round "2"]
[White "Herman-NY"]
[Black "ajedrez-facil"]
[Result "1-0"]
[WhiteElo "2506"]
[BlackElo "2276"]
[TimeControl "180+1"]
[EndTime "8:13:36 PDT"]
[Termination "Herman-NY won by resignation"]

1. e4 {[%clk 0:03:00.9]} 1... c5 {[%clk 0:02:58.8]} 2. Nf3 {[%clk 0:03:00.2]}
2... d6 {[%clk 0:02:58]} 3. d4 {[%clk 0:03:00.5]} 3... cxd4 {[%clk 0:02:58.1]}
4. Nxd4 {[%clk 0:03:01.4]} 4... Nf6 {[%clk 0:02:58.3]} 5. Nc3 {[%clk 0:03:00.5]}
5... g6 {[%clk 0:02:58.8]} 6. Be3 {[%clk 0:03:00.2]} 6... Bg7 {[%clk 0:02:59.2]}
7. f3 {[%clk 0:03:00.9]} 7... O-O {[%clk 0:02:59.6]} 8. Qd2 {[%clk 0:03:01.3]}
8... Nc6 {[%clk 0:02:59.7]} 9. Nb3 {[%clk 0:03:02]} 9... Be6 {[%clk 0:02:57.7]}
10. O-O-O {[%clk 0:03:00.1]} 10... a6 {[%clk 0:02:54]} 11. Kb1 {[%clk
0:02:59.4]} 11... Qc7 {[%clk 0:02:54.1]} 12. Bh6 {[%clk 0:02:52.8]} 12... Ne5
{[%clk 0:02:53.1]} 13. h4 {[%clk 0:02:48.3]} 13... Rfc8 {[%clk 0:02:22.5]} 14.
Bxg7 {[%clk 0:02:46.4]} 14... Kxg7 {[%clk 0:02:22.4]} 15. h5 {[%clk 0:02:46.4]}
15... b5 {[%clk 0:02:15.6]} 16. hxg6 {[%clk 0:02:43]} 16... fxg6 {[%clk
0:02:16.5]} 17. Nd4 {[%clk 0:02:36]} 17... Bc4 {[%clk 0:02:10.4]} 18. Nd5 {[%clk
0:01:52.6]} 18... Bxd5 {[%clk 0:01:46.6]} 19. exd5 {[%clk 0:01:52.9]} 19... h5
{[%clk 0:01:30.5]} 20. Ne6+ {[%clk 0:01:52.6]} 1-0

[Event "Early-Titled-Tuesday-Blitz-October-03-2023"]
[Site "Chess.com"]
[Date "2023.10.03"]
[Round "2"]
[White "guillembaches"]
[Black "Zampronha1971"]
[Result "1-0"]
[WhiteElo "2512"]
[BlackElo "2304"]
[TimeControl "180+1"]
[EndTime "8:14:07 PDT"]
[Termination "guillembaches won by resignation"]

1. d4 {[%clk 0:03:00.9]} 1... Nf6 {[%clk 0:02:59.1]} 2. Nf3 {[%clk 0:03:01.2]}
2... e6 {[%clk 0:02:59.3]} 3. Bg5 {[%clk 0:03:01.7]} 3... c5 {[%clk 0:02:58.4]}
4. e3 {[%clk 0:03:00.1]} 4... b6 {[%clk 0:02:58.6]} 5. Nbd2 {[%clk 0:02:59.4]}
5... Bb7 {[%clk 0:02:59.1]} 6. Bd3 {[%clk 0:02:59.5]} 6... Be7 {[%clk 0:02:59]}
7. c3 {[%clk 0:02:59.2]} 7... O-O {[%clk 0:02:57.8]} 8. Qe2 {[%clk 0:02:59.1]}
8... d5 {[%clk 0:02:58.1]} 9. h4 {[%clk 0:02:58]} 9... Ne4 {[%clk 0:02:48.2]}
10. Bf4 {[%clk 0:02:56.7]} 10... Nc6 {[%clk 0:02:44.5]} 11. Nxe4 {[%clk
0:02:51.5]} 11... dxe4 {[%clk 0:02:43.5]} 12. Bxe4 {[%clk 0:02:51.7]} 12... cxd4
{[%clk 0:02:43.1]} 13. exd4 {[%clk 0:02:49.4]} 13... Rc8 {[%clk 0:02:38.9]} 14.
Ne5 {[%clk 0:02:44.2]} 14... Nxe5 {[%clk 0:02:28.6]} 15. Bxb7 {[%clk 0:02:38.2]}
15... Ng6 {[%clk 0:02:28.5]} 16. Bxc8 {[%clk 0:02:28.1]} 16... Nxf4 {[%clk
0:02:28.2]} 17. Qf3 {[%clk 0:02:21.2]} 17... Nxg2+ {[%clk 0:02:27.6]} 18. Qxg2
{[%clk 0:02:18.7]} 18... Qxc8 {[%clk 0:02:28.5]} 19. h5 {[%clk 0:02:11]} 19...
h6 {[%clk 0:02:26.7]} 20. Qe4 {[%clk 0:02:00.2]} 20... b5 {[%clk 0:02:19.6]} 21.
a3 {[%clk 0:01:53.8]} 21... a5 {[%clk 0:02:19]} 22. Kf1 {[%clk 0:01:51.5]} 22...
b4 {[%clk 0:02:17.3]} 23. axb4 {[%clk 0:01:51.3]} 23... axb4 {[%clk 0:02:18.2]}
24. Rh3 {[%clk 0:01:49.3]} 24... bxc3 {[%clk 0:02:17.7]} 25. bxc3 {[%clk
0:01:49.7]} 25... e5 {[%clk 0:02:02.9]} 26. Kg2 {[%clk 0:01:40.9]} 26... exd4
{[%clk 0:02:00.3]} 27. Qxe7 {[%clk 0:01:33.4]} 27... Qg4+ {[%clk 0:01:54]} 28.
Rg3 {[%clk 0:01:25.8]} 28... Qe4+ {[%clk 0:01:54.4]} 29. Qxe4 {[%clk 0:01:24.7]}
1-0

[Event "Early-Titled-Tuesday-Blitz-October-03-2023"]
[Site "Chess.com"]
[Date "2023.10.03"]
[Round "2"]
[White "Gentlejimmy7"]
[Black "chessprincesa1"]
[Result "1-0"]
[WhiteElo "2510"]
[BlackElo "2300"]
[TimeControl "180+1"]
[EndTime "8:14:31 PDT"]
[Termination "Gentlejimmy7 won by resignation"]

1. c4 {[%clk 0:02:41.6]} 1... e6 {[%clk 0:02:59.7]} 2. Nc3 {[%clk 0:02:41.5]}
2... Nf6 {[%clk 0:02:59.9]} 3. g3 {[%clk 0:02:41.3]} 3... d5 {[%clk 0:03:00]} 4.
Bg2 {[%clk 0:02:41.5]} 4... d4 {[%clk 0:02:57.8]} 5. Ne4 {[%clk 0:02:42.1]} 5...
c5 {[%clk 0:02:53.6]} 6. Nxf6+ {[%clk 0:02:40.2]} 6... Qxf6 {[%clk 0:02:52.9]}
7. Nf3 {[%clk 0:02:41.1]} 7... Nc6 {[%clk 0:02:52]} 8. d3 {[%clk 0:02:41.6]}
8... h6 {[%clk 0:02:48.6]} 9. O-O {[%clk 0:02:41.6]} 9... Bd6 {[%clk 0:02:45.5]}
10. e3 {[%clk 0:02:39.6]} 10... O-O {[%clk 0:02:44.6]} 11. exd4 {[%clk
0:02:39.4]} 11... cxd4 {[%clk 0:02:43.3]} 12. a3 {[%clk 0:02:37.8]} 12... e5
{[%clk 0:02:42.6]} 13. b4 {[%clk 0:02:37.4]} 13... Bg4 {[%clk 0:02:41]} 14. h3
{[%clk 0:02:36.3]} 14... Bh5 {[%clk 0:02:40]} 15. b5 {[%clk 0:02:32.8]} 15...
Nd8 {[%clk 0:02:36.7]} 16. Qe2 {[%clk 0:02:12.9]} 16... Re8 {[%clk 0:02:34.4]}
17. Re1 {[%clk 0:02:12.1]} 17... Ne6 {[%clk 0:02:31]} 18. g4 {[%clk 0:02:12.4]}
18... Bg6 {[%clk 0:02:31]} 19. Nd2 {[%clk 0:02:11]} 19... Nc5 {[%clk 0:02:28.3]}
20. Ne4 {[%clk 0:02:11.2]} 20... Nxe4 {[%clk 0:02:11.3]} 21. Bxe4 {[%clk
0:02:12.1]} 21... Bxe4 {[%clk 0:02:11.1]} 22. Qxe4 {[%clk 0:02:11.7]} 22... b6
{[%clk 0:02:09.4]} 23. Bd2 {[%clk 0:02:11.1]} 23... Rac8 {[%clk 0:02:07.5]} 24.
a4 {[%clk 0:02:09.3]} 24... Qh4 {[%clk 0:02:01.5]} 25. Kg2 {[%clk 0:02:09.2]}
25... Rf8 {[%clk 0:02:00.4]} 26. a5 {[%clk 0:02:01.2]} 26... g6 {[%clk
0:01:53.2]} 27. axb6 {[%clk 0:02:00.1]} 27... axb6 {[%clk 0:01:49.4]} 28. Ra7
{[%clk 0:02:00.7]} 28... Kg7 {[%clk 0:01:46.7]} 29. Qd5 {[%clk 0:01:59.1]} 29...
Bb8 {[%clk 0:01:38.5]} 30. Rd7 {[%clk 0:01:49.3]} 30... h5 {[%clk 0:01:35.7]}
31. Re4 {[%clk 0:01:49.4]} 31... Rcd8 {[%clk 0:01:23.8]} 32. g5 {[%clk
0:01:47.1]} 32... Rxd7 {[%clk 0:01:18.8]} 33. Qxd7 {[%clk 0:01:48]} 1-0

[Event "Early-Titled-Tuesday-Blitz-October-03-2023"]
[Site "Chess.com"]
[Date "2023.10.03"]
[Round "2"]
[White "temus_galaktionov"]
[Black "NovoselovRoman"]
[Result "1-0"]
[WhiteElo "2856"]
[BlackElo "2592"]
[TimeControl "180+1"]
[EndTime "8:14:38 PDT"]
[Termination "temus_galaktionov won by resignation"]

1. d4 {[%clk 0:03:00.2]} 1... d5 {[%clk 0:02:58.1]} 2. Nf3 {[%clk 0:03:00.2]}
2... Nf6 {[%clk 0:02:56.3]} 3. c4 {[%clk 0:03:00.7]} 3... e6 {[%clk 0:02:56.3]}
4. Nc3 {[%clk 0:03:00.2]} 4... Be7 {[%clk 0:02:53.9]} 5. Bf4 {[%clk 0:03:00]}
5... a6 {[%clk 0:02:53.8]} 6. c5 {[%clk 0:02:58.9]} 6... Nc6 {[%clk 0:02:52.4]}
7. a3 {[%clk 0:02:58.6]} 7... Ne4 {[%clk 0:02:51]} 8. Qc2 {[%clk 0:02:58.1]}
8... f5 {[%clk 0:02:50.6]} 9. h4 {[%clk 0:02:58]} 9... O-O {[%clk 0:02:44.4]}
10. e3 {[%clk 0:02:54.7]} 10... Bd7 {[%clk 0:02:39.4]} 11. Be2 {[%clk
0:02:49.2]} 11... Bf6 {[%clk 0:02:26.7]} 12. Nxe4 {[%clk 0:02:40.9]} 12... fxe4
{[%clk 0:02:24.9]} 13. Ne5 {[%clk 0:02:41.8]} 13... Bxe5 {[%clk 0:02:12.8]} 14.
dxe5 {[%clk 0:02:42.7]} 14... d4 {[%clk 0:02:06.4]} 15. Qxe4 {[%clk 0:02:40.9]}
15... dxe3 {[%clk 0:02:00.8]} 16. Bxe3 {[%clk 0:02:39.2]} 16... Ne7 {[%clk
0:01:53]} 17. Rd1 {[%clk 0:02:32.8]} 17... Nd5 {[%clk 0:01:50]} 18. Bg5 {[%clk
0:02:30.5]} 18... Qe8 {[%clk 0:01:49.4]} 19. Bd3 {[%clk 0:02:30.8]} 19... g6
{[%clk 0:01:36.7]} 20. h5 {[%clk 0:02:30.1]} 20... Rf5 {[%clk 0:01:36.7]} 21. f4
{[%clk 0:02:27.9]} 21... Qf8 {[%clk 0:01:25.5]} 22. hxg6 {[%clk 0:02:26]} 22...
Bc6 {[%clk 0:01:10.7]} 23. gxh7+ {[%clk 0:02:15.8]} 23... Kh8 {[%clk 0:01:09.6]}
24. Qd4 {[%clk 0:02:05.1]} 24... Nxf4 {[%clk 0:01:00.9]} 25. Bxf5 {[%clk
0:02:03.1]} 25... Nxg2+ {[%clk 0:00:54.6]} 26. Kd2 {[%clk 0:02:02.4]} 1-0

[Event "Early-Titled-Tuesday-Blitz-October-03-2023"]
[Site "Chess.com"]
[Date "2023.10.03"]
[Round "2"]
[White "Casper"]
[Black "IsaqueGoncalvesSanto"]
[Result "1-0"]
[WhiteElo "2400"]
[BlackElo "1878"]
[TimeControl "180+1"]
[EndTime "8:15:08 PDT"]
[Termination "Casper won on time"]

1. h3 {[%clk 0:02:59.7]} 1... e6 {[%clk 0:02:58.7]} 2. e4 {[%clk 0:02:59.4]}
2... d5 {[%clk 0:02:59]} 3. exd5 {[%clk 0:02:59.8]} 3... exd5 {[%clk 0:02:59.1]}
4. Nf3 {[%clk 0:03:00.3]} 4... Nf6 {[%clk 0:02:59.5]} 5. d4 {[%clk 0:03:00.4]}
5... Bd6 {[%clk 0:02:59.6]} 6. Bd3 {[%clk 0:03:01.1]} 6... O-O {[%clk
0:02:58.9]} 7. O-O {[%clk 0:03:01.8]} 7... h6 {[%clk 0:02:58.7]} 8. Re1 {[%clk
0:02:59.1]} 8... Be6 {[%clk 0:02:57.7]} 9. Ne5 {[%clk 0:02:56.3]} 9... Nc6
{[%clk 0:02:53.9]} 10. Bf4 {[%clk 0:02:49.9]} 10... Nb4 {[%clk 0:02:52.4]} 11.
Bf1 {[%clk 0:02:47.6]} 11... Bf5 {[%clk 0:02:49.8]} 12. Na3 {[%clk 0:02:37.4]}
12... c5 {[%clk 0:02:40.9]} 13. c3 {[%clk 0:02:27.7]} 13... Nc6 {[%clk
0:02:38.1]} 14. Nb5 {[%clk 0:02:27.1]} 14... Bxe5 {[%clk 0:02:31.2]} 15. dxe5
{[%clk 0:02:14.7]} 15... Ne4 {[%clk 0:02:23.4]} 16. f3 {[%clk 0:02:09.1]} 16...
Ng5 {[%clk 0:02:04.8]} 17. Nd6 {[%clk 0:02:08.8]} 17... Bc8 {[%clk 0:01:48.2]}
18. Qxd5 {[%clk 0:02:04]} 18... Ne6 {[%clk 0:01:41.5]} 19. Be3 {[%clk 0:02:00]}
19... Ne7 {[%clk 0:01:37.4]} 20. Qe4 {[%clk 0:01:56.4]} 20... Qc7 {[%clk
0:01:19.6]} 21. Bd3 {[%clk 0:01:54.6]} 1-0

[Event "Early-Titled-Tuesday-Blitz-October-03-2023"]
[Site "Chess.com"]
[Date "2023.10.03"]
[Round "2"]
[White "biostatistician"]
[Black "Krakozia"]
[Result "0-1"]
[WhiteElo "2630"]
[BlackElo "3027"]
[TimeControl "180+1"]
[EndTime "8:15:19 PDT"]
[Termination "Krakozia won by checkmate"]

1. d4 {[%clk 0:03:00.8]} 1... Nf6 {[%clk 0:02:59.3]} 2. Nf3 {[%clk 0:03:01.7]}
2... e6 {[%clk 0:02:58.8]} 3. c4 {[%clk 0:03:02]} 3... Bb4+ {[%clk 0:02:57.9]}
4. Nbd2 {[%clk 0:03:02.3]} 4... O-O {[%clk 0:02:56.9]} 5. a3 {[%clk 0:03:03.2]}
5... Bxd2+ {[%clk 0:02:56.7]} 6. Bxd2 {[%clk 0:03:04.1]} 6... Ne4 {[%clk
0:02:53.3]} 7. Bf4 {[%clk 0:03:03.1]} 7... d6 {[%clk 0:02:49.3]} 8. e3 {[%clk
0:03:00.3]} 8... Nd7 {[%clk 0:02:46.1]} 9. Bd3 {[%clk 0:03:00.5]} 9... f5 {[%clk
0:02:43.7]} 10. O-O {[%clk 0:02:58]} 10... Ndf6 {[%clk 0:02:42.2]} 11. Ne1
{[%clk 0:02:56.2]} 11... g5 {[%clk 0:02:38.4]} 12. Bg3 {[%clk 0:02:52.8]} 12...
Qe7 {[%clk 0:02:36]} 13. b4 {[%clk 0:02:38.6]} 13... Bd7 {[%clk 0:02:34.1]} 14.
a4 {[%clk 0:02:29.9]} 14... a5 {[%clk 0:02:28.9]} 15. b5 {[%clk 0:02:29.8]}
15... b6 {[%clk 0:02:28.1]} 16. f3 {[%clk 0:02:27.2]} 16... Nxg3 {[%clk
0:02:27.1]} 17. hxg3 {[%clk 0:02:28.1]} 17... e5 {[%clk 0:02:23.2]} 18. Nc2
{[%clk 0:02:20]} 18... Rae8 {[%clk 0:02:14.9]} 19. Qd2 {[%clk 0:02:19.1]} 19...
Nh5 {[%clk 0:02:04.4]} 20. Kh2 {[%clk 0:02:07.9]} 20... f4 {[%clk 0:01:59.9]}
21. g4 {[%clk 0:01:51.7]} 21... Ng3 {[%clk 0:01:59.1]} 22. Rfe1 {[%clk
0:01:51.6]} 22... Qf6 {[%clk 0:01:56.1]} 23. Kg1 {[%clk 0:01:45.5]} 23... Qh6
{[%clk 0:01:53.9]} 24. e4 {[%clk 0:01:37.9]} 24... Qh1+ {[%clk 0:01:50.1]} 25.
Kf2 {[%clk 0:01:38]} 25... Qh4 {[%clk 0:01:50.6]} 26. Kg1 {[%clk 0:01:38.5]}
26... Rf6 {[%clk 0:01:33.8]} 27. c5 {[%clk 0:01:33.2]} 27... Rh6 {[%clk
0:01:25.1]} 28. c6 {[%clk 0:01:27.5]} 28... Bxg4 {[%clk 0:01:20.2]} 29. fxg4
{[%clk 0:01:22.2]} 29... Qxg4 {[%clk 0:01:07.3]} 30. Be2 {[%clk 0:01:03.9]}
30... Rh1+ {[%clk 0:01:03.9]} 31. Kf2 {[%clk 0:01:03.9]} 31... Nxe4# {[%clk
0:01:04.3]} 0-1

[Event "Early-Titled-Tuesday-Blitz-October-03-2023"]
[Site "Chess.com"]
[Date "2023.10.03"]
[Round "2"]
[White "sergoy"]
[Black "meoluoi91"]
[Result "1-0"]
[WhiteElo "3027"]
[BlackElo "2632"]
[TimeControl "180+1"]
[EndTime "8:15:22 PDT"]
[Termination "sergoy won by resignation"]

1. d4 {[%clk 0:03:00.9]} 1... d5 {[%clk 0:02:52.2]} 2. c4 {[%clk 0:03:01.2]}
2... c6 {[%clk 0:02:51.8]} 3. Nf3 {[%clk 0:03:01.9]} 3... Nf6 {[%clk 0:02:52]}
4. Nc3 {[%clk 0:03:02.6]} 4... g6 {[%clk 0:02:50.5]} 5. Bf4 {[%clk 0:03:00.9]}
5... Bg7 {[%clk 0:02:50.6]} 6. e3 {[%clk 0:03:01.4]} 6... O-O {[%clk 0:02:50.6]}
7. Be2 {[%clk 0:03:01.3]} 7... Be6 {[%clk 0:02:50.3]} 8. cxd5 {[%clk 0:02:57.6]}
8... Nxd5 {[%clk 0:02:48.4]} 9. Bg3 {[%clk 0:02:57.2]} 9... Nb6 {[%clk
0:02:46.2]} 10. O-O {[%clk 0:02:56.6]} 10... N8d7 {[%clk 0:02:43.6]} 11. Ng5
{[%clk 0:02:56.6]} 11... Bc4 {[%clk 0:02:42.7]} 12. Bxc4 {[%clk 0:02:42.7]}
12... Nxc4 {[%clk 0:02:43.6]} 13. Qe2 {[%clk 0:02:43.4]} 13... Ncb6 {[%clk
0:02:38.5]} 14. Nf3 {[%clk 0:02:41.1]} 14... e6 {[%clk 0:02:20.5]} 15. Rfd1
{[%clk 0:02:36.9]} 15... Qe7 {[%clk 0:02:16.6]} 16. Ne5 {[%clk 0:02:34.4]} 16...
Rad8 {[%clk 0:02:11]} 17. Ne4 {[%clk 0:02:28]} 17... f5 {[%clk 0:01:35.9]} 18.
Nxd7 {[%clk 0:02:27.5]} 18... Rxd7 {[%clk 0:01:36.1]} 19. Nc5 {[%clk 0:02:26.9]}
19... Rdd8 {[%clk 0:01:36.1]} 20. Rac1 {[%clk 0:02:25.2]} 20... Kh8 {[%clk
0:01:26.9]} 21. a4 {[%clk 0:02:20.7]} 21... Nc8 {[%clk 0:01:11.9]} 22. a5 {[%clk
0:02:18.2]} 22... a6 {[%clk 0:01:09.6]} 23. h3 {[%clk 0:02:16]} 23... Na7 {[%clk
0:01:09.4]} 24. Qc4 {[%clk 0:02:14]} 24... Nb5 {[%clk 0:01:09.3]} 25. Nxe6
{[%clk 0:02:10.7]} 25... Nd6 {[%clk 0:00:53]} 26. Bxd6 {[%clk 0:02:06.9]} 26...
Qxd6 {[%clk 0:00:53.9]} 27. Nxf8 {[%clk 0:02:05.9]} 27... Bxf8 {[%clk
0:00:54.1]} 28. d5 {[%clk 0:02:01.5]} 28... cxd5 {[%clk 0:00:53]} 29. Qc7 {[%clk
0:02:01.4]} 29... Rd7 {[%clk 0:00:50.2]} 30. Qxd6 {[%clk 0:02:00.8]} 30... Bxd6
{[%clk 0:00:49.7]} 31. Kf1 {[%clk 0:01:54.3]} 31... Bb4 {[%clk 0:00:49.2]} 32.
Ke2 {[%clk 0:01:54.1]} 32... Bxa5 {[%clk 0:00:49.1]} 33. Rc5 {[%clk 0:01:54]}
33... Bb4 {[%clk 0:00:41.7]} 34. Rcxd5 {[%clk 0:01:53.8]} 34... Rf7 {[%clk
0:00:30.1]} 35. Rd7 {[%clk 0:01:54]} 1-0

[Event "Early-Titled-Tuesday-Blitz-October-03-2023"]
[Site "Chess.com"]
[Date "2023.10.03"]
[Round "2"]
[White "Zohid6"]
[Black "Real_taiatai"]
[Result "0-1"]
[WhiteElo "2790"]
[BlackElo "2565"]
[TimeControl "180+1"]
[EndTime "8:15:23 PDT"]
[Termination "Real_taiatai won by resignation"]

1. d4 {[%clk 0:02:45.9]} 1... Nf6 {[%clk 0:02:59.7]} 2. Nc3 {[%clk 0:02:45.4]}
2... d5 {[%clk 0:02:59.5]} 3. Bf4 {[%clk 0:02:45.7]} 3... c5 {[%clk 0:02:59.5]}
4. e4 {[%clk 0:02:45.6]} 4... cxd4 {[%clk 0:02:55]} 5. Qxd4 {[%clk 0:01:56.7]}
5... Nc6 {[%clk 0:02:54.3]} 6. Bb5 {[%clk 0:01:56.7]} 6... Bd7 {[%clk
0:02:37.6]} 7. Bxc6 {[%clk 0:01:56.2]} 7... Bxc6 {[%clk 0:02:38.1]} 8. e5 {[%clk
0:01:56.9]} 8... Nd7 {[%clk 0:02:38.6]} 9. e6 {[%clk 0:01:57.5]} 9... fxe6
{[%clk 0:02:32.2]} 10. Nf3 {[%clk 0:01:57.8]} 10... Qb6 {[%clk 0:02:29.6]} 11.
Qd2 {[%clk 0:01:58]} 11... d4 {[%clk 0:02:25.9]} 12. Qxd4 {[%clk 0:01:56.5]}
12... Bxf3 {[%clk 0:02:24.1]} 13. Qxb6 {[%clk 0:01:55.6]} 13... axb6 {[%clk
0:02:21.9]} 14. gxf3 {[%clk 0:01:56.1]} 14... g6 {[%clk 0:02:20.1]} 15. O-O-O
{[%clk 0:01:53.7]} 15... Bg7 {[%clk 0:02:19.7]} 16. Nb5 {[%clk 0:01:54.4]} 16...
Rxa2 {[%clk 0:01:57.9]} 17. c3 {[%clk 0:01:07.5]} 17... O-O {[%clk 0:01:45.1]}
18. Kb1 {[%clk 0:01:05.1]} 18... Ra5 {[%clk 0:01:40.8]} 19. Rxd7 {[%clk
0:01:04.9]} 19... Rxb5 {[%clk 0:01:40.1]} 20. Bd2 {[%clk 0:01:03.5]} 20... Rxf3
{[%clk 0:01:39.5]} 21. Rxe7 {[%clk 0:01:00.4]} 21... Rxf2 {[%clk 0:01:39.3]} 22.
Rd1 {[%clk 0:00:52.7]} 22... Rd5 {[%clk 0:01:38.5]} 23. Rxb7 {[%clk 0:00:44.9]}
23... Rdxd2 {[%clk 0:01:36.6]} 24. Rxd2 {[%clk 0:00:45.8]} 24... Rxd2 {[%clk
0:01:37]} 25. Rxb6 {[%clk 0:00:46.7]} 25... e5 {[%clk 0:01:37.4]} 26. Rb7 {[%clk
0:00:44.5]} 26... Rxh2 {[%clk 0:01:32.3]} 27. c4 {[%clk 0:00:44]} 27... e4
{[%clk 0:01:31.6]} 28. c5 {[%clk 0:00:44.3]} 28... Rxb2+ {[%clk 0:01:27.1]} 29.
Rxb2 {[%clk 0:00:33.1]} 29... Bxb2 {[%clk 0:01:28]} 30. c6 {[%clk 0:00:33.7]}
30... Be5 {[%clk 0:01:27.4]} 0-1

[Event "Early-Titled-Tuesday-Blitz-October-03-2023"]
[Site "Chess.com"]
[Date "2023.10.03"]
[Round "2"]
[White "Mazarini41"]
[Black "HrvojeZagreb"]
[Result "1/2-1/2"]
[WhiteElo "2497"]
[BlackElo "2311"]
[TimeControl "180+1"]
[EndTime "8:15:32 PDT"]
[Termination "Game drawn by repetition"]

1. d4 {[%clk 0:02:58.6]} 1... e6 {[%clk 0:02:57]} 2. c4 {[%clk 0:02:58.9]} 2...
d5 {[%clk 0:02:57.1]} 3. Nc3 {[%clk 0:02:59.1]} 3... f5 {[%clk 0:02:57]} 4. Nf3
{[%clk 0:02:58.7]} 4... c6 {[%clk 0:02:57.3]} 5. g3 {[%clk 0:02:58.4]} 5... Nf6
{[%clk 0:02:57.7]} 6. Bg2 {[%clk 0:02:58.8]} 6... Bd6 {[%clk 0:02:58.3]} 7. Bf4
{[%clk 0:02:58.9]} 7... O-O {[%clk 0:02:58.3]} 8. Bxd6 {[%clk 0:02:59.2]} 8...
Qxd6 {[%clk 0:02:59.2]} 9. O-O {[%clk 0:02:59.5]} 9... Ne4 {[%clk 0:02:58.8]}
10. Qc2 {[%clk 0:02:59.7]} 10... b6 {[%clk 0:02:58.8]} 11. Rfd1 {[%clk 0:02:56]}
11... Bb7 {[%clk 0:02:58.6]} 12. Rac1 {[%clk 0:02:56.3]} 12... Nd7 {[%clk
0:02:58.7]} 13. e3 {[%clk 0:02:54.9]} 13... Rac8 {[%clk 0:02:58.7]} 14. Ne2
{[%clk 0:02:53.7]} 14... a6 {[%clk 0:02:58.6]} 15. Nf4 {[%clk 0:02:53.2]} 15...
c5 {[%clk 0:02:54.9]} 16. dxc5 {[%clk 0:02:52.3]} 16... Rxc5 {[%clk 0:02:55]}
17. Qb1 {[%clk 0:02:44.4]} 17... Rfc8 {[%clk 0:02:53.2]} 18. cxd5 {[%clk
0:02:44.5]} 18... Bxd5 {[%clk 0:02:50.3]} 19. Rxc5 {[%clk 0:02:37.5]} 19... Rxc5
{[%clk 0:02:49]} 20. Nd4 {[%clk 0:02:30.9]} 20... g5 {[%clk 0:01:43.8]} 21. Nxd5
{[%clk 0:02:25.3]} 21... Rxd5 {[%clk 0:01:44.7]} 22. Bxe4 {[%clk 0:02:22.1]}
22... fxe4 {[%clk 0:01:43.5]} 23. Rc1 {[%clk 0:02:15.9]} 23... Nc5 {[%clk
0:01:40.9]} 24. b4 {[%clk 0:02:10.1]} 24... Nd3 {[%clk 0:01:38.8]} 25. Rc8+
{[%clk 0:02:10.7]} 25... Kf7 {[%clk 0:01:35.7]} 26. b5 {[%clk 0:02:01.5]} 26...
Rxd4 {[%clk 0:01:29.4]} 27. exd4 {[%clk 0:01:56.4]} 27... Qxd4 {[%clk
0:01:30.3]} 28. Qf1 {[%clk 0:01:53.2]} 28... axb5 {[%clk 0:01:27.4]} 29. Qe2
{[%clk 0:01:53.5]} 29... Kg6 {[%clk 0:01:14.1]} 30. Rg8+ {[%clk 0:01:51.4]}
30... Kf7 {[%clk 0:01:11.4]} 31. Rxg5 {[%clk 0:01:48.8]} 31... Qa1+ {[%clk
0:01:11.3]} 32. Qf1 {[%clk 0:01:48.9]} 32... Qxa2 {[%clk 0:01:08.3]} 33. f3
{[%clk 0:01:38.5]} 33... e3 {[%clk 0:00:47.2]} 34. Qxd3 {[%clk 0:01:38.3]} 34...
Qf2+ {[%clk 0:00:46.6]} 35. Kh1 {[%clk 0:01:39]} 35... Qxf3+ {[%clk 0:00:46.9]}
36. Kg1 {[%clk 0:01:39.7]} 36... Qf2+ {[%clk 0:00:47.2]} 37. Kh1 {[%clk
0:01:40.4]} 37... Qf3+ {[%clk 0:00:45.2]} 38. Kg1 {[%clk 0:01:41.1]} 38... Qf2+
{[%clk 0:00:41.4]} 39. Kh1 {[%clk 0:01:41.5]} 39... Qf3+ {[%clk 0:00:37.3]}
1/2-1/2